[Event "Titled Tuesday Blitz May 9 Early 2023"]
[White "Kozak, Adam"]
[Black "SashaKuzhilniy"]
[WhiteFideId "753246"]
[WhiteElo "2469"]
[BlackElo "2580"]
[Result "1-0"]
[Round "06"]
[TimeControl "180+2"]
[Date "2023.05.09"]
[WhiteClock "0:01:52"]
[BlackClock "0:00:11"]

1. c4 {[%clk 0:02:45]}  Nf6 {[%clk 0:02:58]} 2. Nc3 {[%clk 0:02:45]}  e5 {[%clk 0:02:57]} 3. Nf3 {[%clk 0:02:44]}  Nc6 {[%clk 0:02:57]} 4. e4 {[%clk 0:02:45]}  Bb4 {[%clk 0:02:54]} 5. d3 {[%clk 0:02:45]}  d6 {[%clk 0:02:53]} 6. a3 {[%clk 0:02:44]}  Bc5 {[%clk 0:02:53]} 7. b4 {[%clk 0:02:44]}  Bb6 {[%clk 0:02:53]} 8. Be2 {[%clk 0:02:44]}  Bg4 {[%clk 0:02:48]} 9. Be3 {[%clk 0:02:43]}  Bxf3 {[%clk 0:02:41]} 10. Bxf3 {[%clk 0:02:42]}  Bd4 {[%clk 0:02:26]} 11. Rc1 {[%clk 0:02:37]}  Bxc3+ {[%clk 0:02:19]} 12. Rxc3 {[%clk 0:02:36]}  Nd4 {[%clk 0:02:19]} 13. O-O {[%clk 0:02:35]}  c5 {[%clk 0:02:19]} 14. g3 {[%clk 0:02:32]}  O-O {[%clk 0:02:13]} 15. Bg2 {[%clk 0:02:32]}  Qd7 {[%clk 0:01:51]} 16. Rc1 {[%clk 0:02:30]}  Ne8 {[%clk 0:01:47]} 17. Rb1 {[%clk 0:02:30]}  b6 {[%clk 0:01:46]} 18. f4 {[%clk 0:02:27]}  f6 {[%clk 0:01:44]} 19. f5 {[%clk 0:02:23]}  Nc7 {[%clk 0:01:32]} 20. g4 {[%clk 0:02:20]}  h6 {[%clk 0:01:32]} 21. h4 {[%clk 0:02:19]}  Kf7 {[%clk 0:01:33]} 22. g5 {[%clk 0:02:18]}  hxg5 {[%clk 0:01:33]} 23. hxg5 {[%clk 0:02:19]}  Rh8 {[%clk 0:01:34]} 24. g6+ {[%clk 0:02:19]}  Ke7 {[%clk 0:01:33]} 25. Bxd4 {[%clk 0:02:19]}  exd4 {[%clk 0:01:27]} 26. bxc5 {[%clk 0:02:13]}  bxc5 {[%clk 0:01:20]} 27. e5 {[%clk 0:02:13]}  dxe5 {[%clk 0:01:17]} 28. Bxa8 {[%clk 0:02:13]}  Nxa8 {[%clk 0:01:13]} 29. Qf3 {[%clk 0:02:12]}  Nb6 {[%clk 0:01:11]} 30. Rb5 {[%clk 0:02:09]}  Kd6 {[%clk 0:01:08]} 31. Rfb1 {[%clk 0:02:06]}  Qc6 {[%clk 0:00:31]} 32. Qxc6+ {[%clk 0:02:06]}  Kxc6 {[%clk 0:00:32]} 33. a4 {[%clk 0:02:06]}  Rh5 {[%clk 0:00:26]} 34. a5 {[%clk 0:02:05]}  Nd7 {[%clk 0:00:22]} 35. Rb7 {[%clk 0:01:57]}  a6 {[%clk 0:00:18]} 36. Ra7 {[%clk 0:01:54]}  Rxf5 {[%clk 0:00:18]} 37. Rxa6+ {[%clk 0:01:53]}  Kc7 {[%clk 0:00:19]} 38. Ra7+ {[%clk 0:01:53]}  Kc6 {[%clk 0:00:11]} 39. Rbb7 {[%clk 0:01:52]} 1-0


[Site "https://www.chess.com"]

[Event "Titled Tuesday Blitz May 9 Early 2023"]
[White "Chigaev, Maksim"]
[Black "Agibileg, Uurtsaikh"]
[WhiteFideId "4108116"]
[BlackFideId "4901606"]
[WhiteElo "2558"]
[BlackElo "2353"]
[Result "1-0"]
[Round "06"]
[TimeControl "180+2"]
[Date "2023.05.09"]
[WhiteClock "0:00:43"]
[BlackClock "0:00:42"]

1. Nf3 {[%clk 0:03:00]}  Nf6 {[%clk 0:02:59]} 2. c4 {[%clk 0:03:00]}  g6 {[%clk 0:02:59]} 3. Nc3 {[%clk 0:03:00]}  Bg7 {[%clk 0:02:59]} 4. e4 {[%clk 0:03:01]}  d6 {[%clk 0:02:58]} 5. d4 {[%clk 0:03:01]}  O-O {[%clk 0:02:58]} 6. Be2 {[%clk 0:03:01]}  c6 {[%clk 0:02:56]} 7. O-O {[%clk 0:03:01]}  Nfd7 {[%clk 0:02:54]} 8. Bg5 {[%clk 0:02:59]}  Re8 {[%clk 0:02:48]} 9. Qd2 {[%clk 0:02:53]}  Qa5 {[%clk 0:02:44]} 10. a3 {[%clk 0:02:44]}  e5 {[%clk 0:02:43]} 11. b4 {[%clk 0:02:42]}  Qc7 {[%clk 0:02:42]} 12. d5 {[%clk 0:02:42]}  a5 {[%clk 0:02:37]} 13. Rab1 {[%clk 0:02:35]}  Na6 {[%clk 0:02:32]} 14. Rfc1 {[%clk 0:02:29]}  f5 {[%clk 0:02:18]} 15. c5 {[%clk 0:02:26]}  dxc5 {[%clk 0:01:49]} 16. d6 {[%clk 0:02:22]}  Qb8 {[%clk 0:01:46]} 17. b5 {[%clk 0:02:17]}  Nb4 {[%clk 0:01:32]} 18. Be7 {[%clk 0:01:48]}  Nb6 {[%clk 0:01:11]} 19. axb4 {[%clk 0:01:16]}  axb4 {[%clk 0:01:12]} 20. Nd1 {[%clk 0:01:13]}  h6 {[%clk 0:01:09]} 21. bxc6 {[%clk 0:01:07]}  bxc6 {[%clk 0:01:08]} 22. Rxc5 {[%clk 0:01:07]}  Be6 {[%clk 0:01:05]} 23. Qxb4 {[%clk 0:00:48]}  Nd7 {[%clk 0:00:57]} 24. Qxb8 {[%clk 0:00:47]}  Rexb8 {[%clk 0:00:55]} 25. Rxb8+ {[%clk 0:00:47]}  Rxb8 {[%clk 0:00:56]} 26. Rc1 {[%clk 0:00:44]}  fxe4 {[%clk 0:00:48]} 27. Nd2 {[%clk 0:00:44]}  Rb2 {[%clk 0:00:42]} 28. Nxb2 {[%clk 0:00:43]} 1-0


[Site "https://www.chess.com"]

[Event "Titled Tuesday Blitz May 9 Early 2023"]
[White "Skliarov, Viktor"]
[Black "Kaasen, Tor Fredrik"]
[WhiteFideId "14106736"]
[BlackFideId "1516647"]
[WhiteElo "2317"]
[BlackElo "2349"]
[Result "1/2-1/2"]
[Round "06"]
[TimeControl "180+2"]
[Date "2023.05.09"]
[WhiteClock "0:00:04"]
[BlackClock "0:00:39"]

1. e4 {[%clk 0:03:00]}  c5 {[%clk 0:02:56]} 2. Nf3 {[%clk 0:03:00]}  Nc6 {[%clk 0:02:57]} 3. Bb5 {[%clk 0:02:59]}  g6 {[%clk 0:02:56]} 4. O-O {[%clk 0:02:59]}  Bg7 {[%clk 0:02:56]} 5. Re1 {[%clk 0:03:00]}  e5 {[%clk 0:02:56]} 6. Bxc6 {[%clk 0:03:00]}  dxc6 {[%clk 0:02:56]} 7. d3 {[%clk 0:03:00]}  Qe7 {[%clk 0:02:55]} 8. Nbd2 {[%clk 0:02:58]}  Nf6 {[%clk 0:02:55]} 9. Nc4 {[%clk 0:02:58]}  Nd7 {[%clk 0:02:55]} 10. a3 {[%clk 0:02:59]}  O-O {[%clk 0:02:49]} 11. b4 {[%clk 0:02:59]}  Re8 {[%clk 0:02:45]} 12. Bd2 {[%clk 0:02:53]}  f6 {[%clk 0:02:42]} 13. Qb1 {[%clk 0:02:51]}  b6 {[%clk 0:02:37]} 14. a4 {[%clk 0:02:47]}  cxb4 {[%clk 0:02:35]} 15. Bxb4 {[%clk 0:02:46]}  c5 {[%clk 0:02:35]} 16. Bc3 {[%clk 0:02:39]}  Rb8 {[%clk 0:02:31]} 17. Ne3 {[%clk 0:02:26]}  Bb7 {[%clk 0:02:15]} 18. a5 {[%clk 0:02:25]}  Bc6 {[%clk 0:02:04]} 19. axb6 {[%clk 0:02:22]}  axb6 {[%clk 0:02:05]} 20. Ra7 {[%clk 0:02:03]}  Ra8 {[%clk 0:02:04]} 21. Qb3+ {[%clk 0:01:55]}  Qf7 {[%clk 0:02:01]} 22. Qxf7+ {[%clk 0:01:54]}  Kxf7 {[%clk 0:02:02]} 23. Rea1 {[%clk 0:01:53]}  Ke6 {[%clk 0:01:57]} 24. Nd5 {[%clk 0:01:48]}  Kd6 {[%clk 0:01:46]} 25. Nc7 {[%clk 0:01:42]}  Rac8 {[%clk 0:01:16]} 26. Nxe8+ {[%clk 0:01:41]}  Rxe8 {[%clk 0:01:17]} 27. Nd2 {[%clk 0:01:40]}  b5 {[%clk 0:01:17]} 28. Nb3 {[%clk 0:01:32]}  b4 {[%clk 0:01:09]} 29. Bd2 {[%clk 0:01:30]}  Rb8 {[%clk 0:01:06]} 30. Be3 {[%clk 0:01:29]}  Bb5 {[%clk 0:01:05]} 31. Nxc5 {[%clk 0:01:21]}  Nxc5 {[%clk 0:01:02]} 32. Rxg7 {[%clk 0:01:20]}  b3 {[%clk 0:01:03]} 33. Bxc5+ {[%clk 0:01:08]}  Kxc5 {[%clk 0:01:04]} 34. cxb3 {[%clk 0:01:08]}  Bxd3 {[%clk 0:01:04]} 35. Rxh7 {[%clk 0:01:09]}  Bxe4 {[%clk 0:01:04]} 36. Rf7 {[%clk 0:01:05]}  Rb6 {[%clk 0:00:58]} 37. Rc1+ {[%clk 0:01:03]}  Kd5 {[%clk 0:00:54]} 38. Rc3 {[%clk 0:00:56]}  Ke6 {[%clk 0:00:53]} 39. Ra7 {[%clk 0:00:42]}  Rd6 {[%clk 0:00:53]} 40. f3 {[%clk 0:00:42]}  Rd1+ {[%clk 0:00:52]} 41. Kf2 {[%clk 0:00:42]}  Bd5 {[%clk 0:00:52]} 42. Ra6+ {[%clk 0:00:29]}  Kf5 {[%clk 0:00:52]} 43. h4 {[%clk 0:00:27]}  Rd2+ {[%clk 0:00:51]} 44. Kf1 {[%clk 0:00:22]}  e4 {[%clk 0:00:49]} 45. fxe4+ {[%clk 0:00:12]}  Bxe4 {[%clk 0:00:50]} 46. Ra5+ {[%clk 0:00:11]}  Kf4 {[%clk 0:00:44]} 47. g3+ {[%clk 0:00:11]}  Kg4 {[%clk 0:00:45]} 48. Ke1 {[%clk 0:00:07]}  Rb2 {[%clk 0:00:45]} 49. Ra4 {[%clk 0:00:04]}  f5 {[%clk 0:00:46]} 50. b4 {[%clk 0:00:04]}  Bf3 {[%clk 0:00:43]} 51. b5+ {[%clk 0:00:04]}  Kxg3 {[%clk 0:00:43]} 52. Raa3 {[%clk 0:00:03]}  Re2+ {[%clk 0:00:41]} 53. Kf1 {[%clk 0:00:03]}  Rf2+ {[%clk 0:00:42]} 54. Ke1 {[%clk 0:00:04]}  Re2+ {[%clk 0:00:39]} 55. Kf1 {[%clk 0:00:03]}  Rf2+ {[%clk 0:00:39]} 56. Ke1 {[%clk 0:00:04]}  Re2+ {[%clk 0:00:39]} 1/2-1/2


[Site "https://www.chess.com"]

[Event "Titled Tuesday Blitz May 9 Early 2023"]
[White "Manukyan, Sargis V."]
[Black "Klukin, Kirill"]
[WhiteFideId "13303465"]
[BlackFideId "24199273"]
[WhiteElo "2236"]
[BlackElo "2344"]
[Result "0-1"]
[Round "06"]
[TimeControl "180+2"]
[Date "2023.05.09"]
[WhiteClock "0:00:00"]
[BlackClock "0:01:51"]

1. d4 {[%clk 0:01:57]}  Nf6 {[%clk 0:02:51]} 2. c4 {[%clk 0:01:57]}  c5 {[%clk 0:02:51]} 3. d5 {[%clk 0:01:57]}  b5 {[%clk 0:02:52]} 4. cxb5 {[%clk 0:01:56]}  a6 {[%clk 0:02:52]} 5. b6 {[%clk 0:01:57]}  Qxb6 {[%clk 0:02:52]} 6. Nc3 {[%clk 0:01:57]}  d6 {[%clk 0:02:53]} 7. e4 {[%clk 0:01:55]}  g6 {[%clk 0:02:53]} 8. Nf3 {[%clk 0:01:55]}  Bg7 {[%clk 0:02:54]} 9. Be2 {[%clk 0:01:54]}  O-O {[%clk 0:02:54]} 10. O-O {[%clk 0:01:54]}  Bg4 {[%clk 0:02:54]} 11. Rb1 {[%clk 0:01:51]}  Bxf3 {[%clk 0:02:54]} 12. Bxf3 {[%clk 0:01:50]}  a5 {[%clk 0:02:53]} 13. Be2 {[%clk 0:01:27]}  Na6 {[%clk 0:02:53]} 14. Bg5 {[%clk 0:01:06]}  Rfe8 {[%clk 0:02:52]} 15. Bb5 {[%clk 0:00:45]}  Reb8 {[%clk 0:02:45]} 16. Qe2 {[%clk 0:00:39]}  Ra7 {[%clk 0:02:41]} 17. f4 {[%clk 0:00:32]}  Nc7 {[%clk 0:02:18]} 18. a4 {[%clk 0:00:30]}  Nxb5 {[%clk 0:02:11]} 19. Nxb5 {[%clk 0:00:31]}  Rab7 {[%clk 0:02:07]} 20. Rbd1 {[%clk 0:00:28]}  Qa6 {[%clk 0:02:05]} 21. e5 {[%clk 0:00:25]}  Ne8 {[%clk 0:02:05]} 22. Kh1 {[%clk 0:00:12]}  Nc7 {[%clk 0:02:03]} 23. exd6 {[%clk 0:00:09]}  exd6 {[%clk 0:02:01]} 24. f5 {[%clk 0:00:07]}  Nxb5 {[%clk 0:02:00]} 25. axb5 {[%clk 0:00:07]}  Qxb5 {[%clk 0:02:01]} 26. Qf3 {[%clk 0:00:07]}  Qxb2 {[%clk 0:01:59]} 27. f6 {[%clk 0:00:04]}  Bf8 {[%clk 0:01:59]} 28. h4 {[%clk 0:00:04]}  h5 {[%clk 0:01:58]} 29. Rde1 {[%clk 0:00:04]}  a4 {[%clk 0:01:56]} 30. Re7 {[%clk 0:00:03]}  a3 {[%clk 0:01:52]} 31. Rfe1 {[%clk 0:00:00]}  a2 {[%clk 0:01:51]} 0-1


[Site "https://www.chess.com"]

[Event "Titled Tuesday Blitz May 9 Early 2023"]
[White "djokovic74"]
[Black "Baghdasaryan, Vahe"]
[BlackFideId "13303139"]
[WhiteElo "2684"]
[BlackElo "2216"]
[Result "1-0"]
[Round "06"]
[TimeControl "180+2"]
[Date "2023.05.09"]
[WhiteClock "0:00:13"]
[BlackClock "0:00:00"]

1. e4 {[%clk 0:03:00]}  c5 {[%clk 0:02:57]} 2. Nf3 {[%clk 0:03:01]}  Nc6 {[%clk 0:02:56]} 3. d4 {[%clk 0:03:01]}  cxd4 {[%clk 0:02:55]} 4. Nxd4 {[%clk 0:03:02]}  g6 {[%clk 0:02:55]} 5. c4 {[%clk 0:03:02]}  Nf6 {[%clk 0:02:52]} 6. Nc3 {[%clk 0:03:02]}  d6 {[%clk 0:02:49]} 7. Be2 {[%clk 0:03:02]}  Nxd4 {[%clk 0:02:48]} 8. Qxd4 {[%clk 0:03:02]}  Bg7 {[%clk 0:02:48]} 9. Be3 {[%clk 0:03:03]}  O-O {[%clk 0:02:47]} 10. Qd2 {[%clk 0:03:04]}  a5 {[%clk 0:02:45]} 11. O-O {[%clk 0:03:04]}  a4 {[%clk 0:02:45]} 12. Bd4 {[%clk 0:02:50]}  Bd7 {[%clk 0:02:44]} 13. Rfd1 {[%clk 0:02:44]}  Bc6 {[%clk 0:02:43]} 14. Qe3 {[%clk 0:02:36]}  Qa5 {[%clk 0:02:32]} 15. Nd5 {[%clk 0:02:31]}  Bxd5 {[%clk 0:02:19]} 16. exd5 {[%clk 0:02:30]}  Rfe8 {[%clk 0:02:11]} 17. Bb6 {[%clk 0:01:52]}  Qb4 {[%clk 0:02:10]} 18. a3 {[%clk 0:01:40]}  Qxb2 {[%clk 0:02:09]} 19. Rab1 {[%clk 0:01:12]}  Qe5 {[%clk 0:02:01]} 20. Qxe5 {[%clk 0:01:12]}  dxe5 {[%clk 0:02:00]} 21. c5 {[%clk 0:01:10]}  Ne4 {[%clk 0:01:46]} 22. Rbc1 {[%clk 0:00:59]}  Bh6 {[%clk 0:01:45]} 23. Rc2 {[%clk 0:00:57]}  Rec8 {[%clk 0:01:45]} 24. Bb5 {[%clk 0:00:49]}  Nf6 {[%clk 0:00:54]} 25. c6 {[%clk 0:00:29]}  bxc6 {[%clk 0:00:53]} 26. dxc6 {[%clk 0:00:29]}  Rcb8 {[%clk 0:00:18]} 27. c7 {[%clk 0:00:17]}  Rxb6 {[%clk 0:00:18]} 28. Rd8+ {[%clk 0:00:12]}  Kg7 {[%clk 0:00:10]} 29. Rxa8 {[%clk 0:00:13]}  Rxb5 {[%clk 0:00:00]} 30. g3 {[%clk 0:00:13]} 1-0


[Site "https://www.chess.com"]

[Event "Titled Tuesday Blitz May 9 Early 2023"]
[White "Martinez Ramirez, Lennis"]
[Black "Petrovic, Aleksa"]
[WhiteFideId "3509079"]
[BlackFideId "967629"]
[WhiteElo "2410"]
[BlackElo "2309"]
[Result "1-0"]
[Round "06"]
[TimeControl "180+2"]
[Date "2023.05.09"]
[WhiteClock "0:01:04"]
[BlackClock "0:00:00"]

1. c4 {[%clk 0:02:54]}  e6 {[%clk 0:02:57]} 2. g3 {[%clk 0:02:53]}  Nf6 {[%clk 0:02:52]} 3. Bg2 {[%clk 0:02:53]}  c5 {[%clk 0:02:48]} 4. Nf3 {[%clk 0:02:54]}  b6 {[%clk 0:02:47]} 5. d4 {[%clk 0:02:53]}  Bb7 {[%clk 0:02:46]} 6. d5 {[%clk 0:02:52]}  exd5 {[%clk 0:02:45]} 7. Nh4 {[%clk 0:02:52]}  g6 {[%clk 0:02:46]} 8. cxd5 {[%clk 0:02:45]}  Bg7 {[%clk 0:02:45]} 9. Nc3 {[%clk 0:02:43]}  O-O {[%clk 0:02:45]} 10. O-O {[%clk 0:02:43]}  d6 {[%clk 0:02:44]} 11. Bf4 {[%clk 0:02:43]}  a6 {[%clk 0:02:32]} 12. a4 {[%clk 0:02:41]}  Ra7 {[%clk 0:02:33]} 13. e4 {[%clk 0:02:37]}  Re8 {[%clk 0:02:27]} 14. Re1 {[%clk 0:02:36]}  h6 {[%clk 0:02:26]} 15. Nf3 {[%clk 0:02:36]}  Ba8 {[%clk 0:02:18]} 16. h4 {[%clk 0:02:27]}  Rae7 {[%clk 0:02:17]} 17. Qc2 {[%clk 0:01:52]}  Kh7 {[%clk 0:01:54]} 18. Bh3 {[%clk 0:01:50]}  Bb7 {[%clk 0:01:41]} 19. Kf1 {[%clk 0:01:48]}  b5 {[%clk 0:01:17]} 20. axb5 {[%clk 0:01:47]}  axb5 {[%clk 0:01:18]} 21. Nd2 {[%clk 0:01:41]}  b4 {[%clk 0:01:14]} 22. Nb5 {[%clk 0:01:39]}  Ba6 {[%clk 0:00:54]} 23. Rxa6 {[%clk 0:01:38]}  Nxa6 {[%clk 0:00:55]} 24. Nxd6 {[%clk 0:01:37]}  Nxd5 {[%clk 0:00:43]} 25. Nxe8 {[%clk 0:01:36]}  Nxf4 {[%clk 0:00:38]} 26. gxf4 {[%clk 0:01:32]}  Rxe8 {[%clk 0:00:37]} 27. Nf3 {[%clk 0:01:31]}  Qf6 {[%clk 0:00:33]} 28. f5 {[%clk 0:01:25]}  Qxb2 {[%clk 0:00:19]} 29. Qc4 {[%clk 0:01:25]}  Qf6 {[%clk 0:00:19]} 30. e5 {[%clk 0:01:23]}  Qc6 {[%clk 0:00:17]} 31. Bg2 {[%clk 0:01:21]}  Qb6 {[%clk 0:00:00]} 32. f6 {[%clk 0:01:04]} 1-0


[Site "https://www.chess.com"]

[Event "Titled Tuesday Blitz May 9 Early 2023"]
[White "Wieczorek, Oskar"]
[Black "Chernomordik, Pavel"]
[WhiteFideId "1133950"]
[BlackFideId "2804530"]
[WhiteElo "2418"]
[BlackElo "2193"]
[Result "1-0"]
[Round "06"]
[TimeControl "180+2"]
[Date "2023.05.09"]
[WhiteClock "0:00:48"]
[BlackClock "0:00:11"]

1. e4 {[%clk 0:02:58]}  g6 {[%clk 0:02:59]} 2. d4 {[%clk 0:02:58]}  Bg7 {[%clk 0:02:59]} 3. Nf3 {[%clk 0:02:59]}  d6 {[%clk 0:02:59]} 4. Bc4 {[%clk 0:02:59]}  e6 {[%clk 0:02:56]} 5. Bb3 {[%clk 0:02:59]}  b6 {[%clk 0:02:54]} 6. h4 {[%clk 0:02:59]}  h6 {[%clk 0:02:54]} 7. Nc3 {[%clk 0:02:59]}  Bb7 {[%clk 0:02:53]} 8. Qd3 {[%clk 0:02:48]}  Ne7 {[%clk 0:02:50]} 9. Ne2 {[%clk 0:02:44]}  Nd7 {[%clk 0:02:38]} 10. Ng3 {[%clk 0:02:32]}  c5 {[%clk 0:02:32]} 11. c3 {[%clk 0:02:32]}  Qc7 {[%clk 0:02:30]} 12. O-O {[%clk 0:02:23]}  Rc8 {[%clk 0:02:23]} 13. Qe2 {[%clk 0:02:22]}  O-O {[%clk 0:02:10]} 14. Be3 {[%clk 0:02:14]}  Nf6 {[%clk 0:02:05]} 15. Bf4 {[%clk 0:02:10]}  c4 {[%clk 0:01:43]} 16. Bc2 {[%clk 0:02:10]}  Qc6 {[%clk 0:01:39]} 17. Rad1 {[%clk 0:02:04]}  b5 {[%clk 0:01:34]} 18. Rfe1 {[%clk 0:02:04]}  a5 {[%clk 0:01:31]} 19. Qd2 {[%clk 0:02:02]}  Kh7 {[%clk 0:01:29]} 20. h5 {[%clk 0:02:03]}  Qe8 {[%clk 0:01:11]} 21. Bxd6 {[%clk 0:01:54]}  Qd7 {[%clk 0:01:07]} 22. e5 {[%clk 0:01:51]}  Nfd5 {[%clk 0:01:05]} 23. Nh4 {[%clk 0:01:41]}  Nf5 {[%clk 0:01:01]} 24. Ngxf5 {[%clk 0:01:25]}  gxf5 {[%clk 0:00:52]} 25. Bxf8 {[%clk 0:01:18]}  Rxf8 {[%clk 0:00:51]} 26. g4 {[%clk 0:01:03]}  Qd8 {[%clk 0:00:44]} 27. Ng2 {[%clk 0:00:59]}  Kh8 {[%clk 0:00:27]} 28. gxf5 {[%clk 0:00:57]}  f6 {[%clk 0:00:27]} 29. fxe6 {[%clk 0:00:53]}  fxe5 {[%clk 0:00:26]} 30. Rxe5 {[%clk 0:00:49]}  Nf6 {[%clk 0:00:11]} 31. e7 {[%clk 0:00:48]} 1-0


[Site "https://www.chess.com"]

[Event "Titled Tuesday Blitz May 9 Early 2023"]
[White "Manukyan, Sargis A."]
[Black "Andreev, Konstantin"]
[WhiteFideId "13303970"]
[BlackFideId "24239305"]
[WhiteElo "2187"]
[BlackElo "2106"]
[Result "1-0"]
[Round "06"]
[TimeControl "180+2"]
[Date "2023.05.09"]
[WhiteClock "0:01:39"]
[BlackClock "0:00:08"]

1. d4 {[%clk 0:03:00]}  Nf6 {[%clk 0:02:58]} 2. c4 {[%clk 0:03:01]}  e6 {[%clk 0:02:58]} 3. Nc3 {[%clk 0:03:02]}  Bb4 {[%clk 0:02:58]} 4. a3 {[%clk 0:03:03]}  Bxc3+ {[%clk 0:02:57]} 5. bxc3 {[%clk 0:03:04]}  O-O {[%clk 0:02:56]} 6. e3 {[%clk 0:03:04]}  c5 {[%clk 0:02:55]} 7. Bd3 {[%clk 0:03:04]}  b6 {[%clk 0:02:53]} 8. Ne2 {[%clk 0:03:05]}  Ba6 {[%clk 0:02:52]} 9. O-O {[%clk 0:03:05]}  Nc6 {[%clk 0:02:34]} 10. e4 {[%clk 0:03:05]}  d6 {[%clk 0:02:25]} 11. f4 {[%clk 0:03:05]}  h6 {[%clk 0:02:18]} 12. f5 {[%clk 0:03:00]}  Qc7 {[%clk 0:02:08]} 13. Nf4 {[%clk 0:02:53]}  e5 {[%clk 0:02:06]} 14. Nd5 {[%clk 0:02:46]}  Qd8 {[%clk 0:01:52]} 15. Nxf6+ {[%clk 0:02:46]}  Qxf6 {[%clk 0:01:53]} 16. d5 {[%clk 0:02:47]}  Na5 {[%clk 0:01:53]} 17. g4 {[%clk 0:02:44]}  Bxc4 {[%clk 0:01:51]} 18. Bxc4 {[%clk 0:02:44]}  Nxc4 {[%clk 0:01:52]} 19. Qe2 {[%clk 0:02:44]}  b5 {[%clk 0:01:51]} 20. Qf2 {[%clk 0:02:42]}  Rfc8 {[%clk 0:01:47]} 21. h4 {[%clk 0:02:43]}  g6 {[%clk 0:01:24]} 22. Bxh6 {[%clk 0:02:33]}  Kh7 {[%clk 0:01:14]} 23. Bg5 {[%clk 0:02:33]}  Qg7 {[%clk 0:01:13]} 24. fxg6+ {[%clk 0:02:21]}  fxg6 {[%clk 0:01:12]} 25. Bf6 {[%clk 0:02:20]}  Qf7 {[%clk 0:01:10]} 26. Ra2 {[%clk 0:02:05]}  b4 {[%clk 0:01:06]} 27. axb4 {[%clk 0:02:04]}  cxb4 {[%clk 0:01:07]} 28. cxb4 {[%clk 0:02:05]}  Rc7 {[%clk 0:00:58]} 29. Qf3 {[%clk 0:01:54]}  Rac8 {[%clk 0:00:49]} 30. h5 {[%clk 0:01:53]}  gxh5 {[%clk 0:00:30]} 31. Rh2 {[%clk 0:01:52]}  Nd2 {[%clk 0:00:19]} 32. Qf5+ {[%clk 0:01:51]}  Kg8 {[%clk 0:00:19]} 33. Rxh5 {[%clk 0:01:44]}  Nf3+ {[%clk 0:00:13]} 34. Qxf3 {[%clk 0:01:40]}  Qg6 {[%clk 0:00:12]} 35. Rh8+ {[%clk 0:01:39]}  Kf7 {[%clk 0:00:08]} 36. Bd8+ {[%clk 0:01:39]} 1-0


[Site "https://www.chess.com"]

[Event "Titled Tuesday Blitz May 9 Early 2023"]
[White "Bethke, Richard"]
[Black "Guerra Tulcan, Lenin"]
[WhiteFideId "12959243"]
[BlackFideId "3601382"]
[WhiteElo "2369"]
[BlackElo "2368"]
[Result "1-0"]
[Round "06"]
[TimeControl "180+2"]
[Date "2023.05.09"]
[WhiteClock "0:01:19"]
[BlackClock "0:00:14"]

1. e4 {[%clk 0:03:00]}  c5 {[%clk 0:02:59]} 2. Nf3 {[%clk 0:03:01]}  e6 {[%clk 0:02:59]} 3. d4 {[%clk 0:03:01]}  cxd4 {[%clk 0:02:59]} 4. Nxd4 {[%clk 0:03:02]}  Nc6 {[%clk 0:02:59]} 5. Nc3 {[%clk 0:03:02]}  Qc7 {[%clk 0:02:58]} 6. Be2 {[%clk 0:02:58]}  a6 {[%clk 0:02:57]} 7. Be3 {[%clk 0:02:58]}  Nf6 {[%clk 0:02:57]} 8. O-O {[%clk 0:02:57]}  b5 {[%clk 0:02:56]} 9. a3 {[%clk 0:02:49]}  Be7 {[%clk 0:02:56]} 10. f4 {[%clk 0:02:49]}  Bb7 {[%clk 0:02:52]} 11. e5 {[%clk 0:02:47]}  Nxd4 {[%clk 0:02:50]} 12. Bxd4 {[%clk 0:02:39]}  Nd5 {[%clk 0:02:50]} 13. f5 {[%clk 0:02:35]}  Bc5 {[%clk 0:02:38]} 14. Ne4 {[%clk 0:02:32]}  Bxd4+ {[%clk 0:02:27]} 15. Qxd4 {[%clk 0:02:33]}  O-O {[%clk 0:02:10]} 16. Nd6 {[%clk 0:02:16]}  Bc6 {[%clk 0:01:30]} 17. f6 {[%clk 0:02:11]}  gxf6 {[%clk 0:00:53]} 18. exf6 {[%clk 0:01:55]}  Qa7 {[%clk 0:00:35]} 19. Qxa7 {[%clk 0:01:45]}  Rxa7 {[%clk 0:00:36]} 20. Rf3 {[%clk 0:01:39]}  Kh8 {[%clk 0:00:33]} 21. Bd3 {[%clk 0:01:33]}  Rc7 {[%clk 0:00:32]} 22. Raf1 {[%clk 0:01:32]}  Ba8 {[%clk 0:00:24]} 23. Rh3 {[%clk 0:01:28]}  Rc6 {[%clk 0:00:19]} 24. Rxh7+ {[%clk 0:01:28]}  Kg8 {[%clk 0:00:19]} 25. Rg7+ {[%clk 0:01:27]}  Kh8 {[%clk 0:00:19]} 26. Nxf7+ {[%clk 0:01:22]}  Rxf7 {[%clk 0:00:20]} 27. Rxf7 {[%clk 0:01:23]}  Kg8 {[%clk 0:00:21]} 28. Rg7+ {[%clk 0:01:19]}  Kf8 {[%clk 0:00:20]} 29. Rh7 {[%clk 0:01:19]}  Bb7 {[%clk 0:00:14]} 30. f7 {[%clk 0:01:19]} 1-0


[Site "https://www.chess.com"]

[Event "Titled Tuesday Blitz May 9 Early 2023"]
[White "cryptoguru02"]
[Black "Ljukin, Sergei"]
[BlackFideId "14102200"]
[WhiteElo "2613"]
[BlackElo "2312"]
[Result "0-1"]
[Round "06"]
[TimeControl "180+2"]
[Date "2023.05.09"]
[WhiteClock "0:00:24"]
[BlackClock "0:00:07"]

1. d4 {[%clk 0:03:00]}  d5 {[%clk 0:02:51]} 2. c4 {[%clk 0:03:00]}  c6 {[%clk 0:02:51]} 3. Nc3 {[%clk 0:03:00]}  Nf6 {[%clk 0:02:51]} 4. Nf3 {[%clk 0:03:01]}  dxc4 {[%clk 0:02:45]} 5. a4 {[%clk 0:03:00]}  Bf5 {[%clk 0:02:45]} 6. Ne5 {[%clk 0:03:00]}  Na6 {[%clk 0:02:44]} 7. f3 {[%clk 0:02:57]}  Nd7 {[%clk 0:02:43]} 8. Nxd7 {[%clk 0:02:51]}  Bxd7 {[%clk 0:02:42]} 9. e4 {[%clk 0:02:49]}  e5 {[%clk 0:02:24]} 10. dxe5 {[%clk 0:02:47]}  Be6 {[%clk 0:02:24]} 11. Be3 {[%clk 0:02:28]}  Bc5 {[%clk 0:02:07]} 12. Bxc5 {[%clk 0:02:16]}  Nxc5 {[%clk 0:02:07]} 13. f4 {[%clk 0:01:57]}  Qb6 {[%clk 0:01:33]} 14. Qc2 {[%clk 0:01:45]}  Nb3 {[%clk 0:01:32]} 15. Rd1 {[%clk 0:01:40]}  Qe3+ {[%clk 0:01:29]} 16. Ne2 {[%clk 0:01:33]}  Nc5 {[%clk 0:01:09]} 17. f5 {[%clk 0:00:52]}  Nd3+ {[%clk 0:01:04]} 18. Rxd3 {[%clk 0:00:44]}  cxd3 {[%clk 0:01:04]} 19. Qc3 {[%clk 0:00:44]}  Bb3 {[%clk 0:00:24]} 20. Qd4 {[%clk 0:00:43]}  Qxd4 {[%clk 0:00:17]} 21. Nxd4 {[%clk 0:00:42]}  Bxa4 {[%clk 0:00:18]} 22. e6 {[%clk 0:00:25]}  O-O-O {[%clk 0:00:15]} 23. b3 {[%clk 0:00:21]}  Rxd4 {[%clk 0:00:13]} 24. bxa4 {[%clk 0:00:22]}  fxe6 {[%clk 0:00:13]} 25. Kd2 {[%clk 0:00:23]}  exf5 {[%clk 0:00:11]} 26. exf5 {[%clk 0:00:22]}  c5 {[%clk 0:00:11]} 27. g3 {[%clk 0:00:22]}  c4 {[%clk 0:00:11]} 28. Bg2 {[%clk 0:00:22]}  Re8 {[%clk 0:00:12]} 29. Kc3 {[%clk 0:00:22]}  Rd6 {[%clk 0:00:09]} 30. Bf3 {[%clk 0:00:21]}  Re3 {[%clk 0:00:07]} 31. Rf1 {[%clk 0:00:18]}  d2+ {[%clk 0:00:06]} 32. Kc2 {[%clk 0:00:19]}  Rxf3 {[%clk 0:00:06]} 33. Rd1 {[%clk 0:00:19]}  Re3 {[%clk 0:00:06]} 34. a5 {[%clk 0:00:19]}  c3 {[%clk 0:00:06]} 35. Rxd2 {[%clk 0:00:20]}  cxd2 {[%clk 0:00:06]} 36. Kd1 {[%clk 0:00:20]}  Re1+ {[%clk 0:00:06]} 37. Kc2 {[%clk 0:00:21]}  d1=Q+ {[%clk 0:00:07]} 38. Kc3 {[%clk 0:00:22]}  Re3+ {[%clk 0:00:07]} 39. Kb4 {[%clk 0:00:23]}  Qb3+ {[%clk 0:00:07]} 40. Kc5 {[%clk 0:00:24]}  Rd5# {[%clk 0:00:07]} 0-1


[Site "https://www.chess.com"]